bitfinex/quotes_ETHUSD_20250222
["timestamp","ask_amount","ask_price","bid_price","bid_amount"]
[1740237830411,5.32,2746.6,2746.1,7.28289]
[1740237830571,5.32,2746.6,2746.1,3.64143]
[1740237830902,5.3024,2746.6,2746.1,3.64143]
[1740237831081,5.3024,2746.6,2746.2,3.64128]
[1740237831258,5.3024,2746.6,2746.3,3.64118]
[1740237832283,5.3024,2746.6,2746.1,3.64146]
[1740237832471,6.20807,2746.6,2746.1,3.64146]
[1740237832885,0.8279,2746.5,2745.9,3.64175]
[1740237833057,0.8279,2746.5,2745.9,3.64171]
[1740237833257,0.8279,2746.5,2746.1,3.64152]
[1740237833817,0.8279,2746.5,2746.1,3.64145]
[1740237834385,0.8279,2746.5,2745.9,3.6417]
[1740237834717,5.3024,2746.4,2745.7,3.64202]
[1740237834918,5.3024,2746.4,2746.1,3.6415]
[1740237835117,5.3024,2746.4,2746.2,3.64138]
[1740237835527,5.3024,2746.4,2746.3,3.64126]
[1740237836225,5.3024,2746.7,2746.6,3.64086]
[1740237836532,5.3024,2746.7,2746.6,0.24417867]
[1740237836886,10.30127,2746.7,2746.0,4.39372]
[1740237837085,10.30127,2746.7,2746.1,3.88601543]
[1740237838042,6.66054,2746.7,2746.1,3.88601543]
[1740237838683,0.8279,2746.5,2746.1,0.24451543]
[1740237838880,0.8279,2746.5,2745.9,3.64171]
[1740237839109,0.8279,2746.5,2746.0,3.88633589]
[1740237839647,0.8279,2746.5,2746.3,3.64115]
[1740237839924,1.493954,2746.5,2746.0,0.24470589]
[1740237840228,0.8279,2746.5,2746.4,0.24443645]
[1740237840533,4.46893,2746.5,2745.8,3.64182]
[1740237840694,6.1303,2746.5,2745.6,0.7521]
[1740237840910,5.3024,2746.4,2745.9,3.64167]
[1740237841115,5.3024,2746.4,2746.0,3.88623589]
[1740237842455,6.27952,2746.4,2746.0,0.24470589]
[1740237842606,5.3024,2746.4,2746.0,0.24470589]
[1740237843108,0.8279,2746.3,2746.0,0.24470589]
[1740237844436,8.94388,2746.2,2745.6,4.39426]
[1740237844617,8.94388,2746.2,2746.1,0.24463852]
[1740237844822,8.94388,2746.2,2745.0,4.19296]
[1740237844823,0.7647,2746.1,2745.0,0.8163]
[1740237845004,0.7647,2745.9,2745.3,4.38515145]
[1740237845346,0.7647,2745.9,2745.4,3.64243]
[1740237845547,0.7647,2745.9,2745.4,3.64245]
[1740237845749,0.7647,2745.9,2745.6,3.64219]
[1740237845961,5.3024,2745.8,2745.6,3.64219]
[1740237846266,5.3024,2745.8,2745.5,3.64223]
[1740237846422,5.3024,2745.8,2745.4,7.28481]
[1740237846734,5.3024,2745.8,2745.5,3.64228]
[1740237847260,5.3024,2745.8,2745.6,3.64214]
[1740237847472,5.3024,2745.8,2745.7,3.64205]
[1740237847936,5.3024,2745.8,2745.7,4.45835]
[1740237848319,5.3024,2745.8,2745.7,4.72435]
[1740237850828,5.3024,2746.5,2746.2,3.6413]
[1740237851661,5.3024,2746.5,2746.3,0.24498763]
[1740237851970,5.3024,2746.5,2746.2,3.6413]
[1740237852142,5.3024,2746.5,2746.4,0.24492028]
[1740237852343,5.3024,2746.5,2746.2,3.6413]
[1740237852544,5.3024,2746.5,2746.4,0.24492028]
[1740237852861,5.3024,2746.5,2746.3,0.24498763]
[1740237853073,5.3024,2746.5,2746.4,0.24492028]
[1740237853367,5.3024,2746.5,2746.2,3.6413]
[1740237853579,5.3024,2746.5,2746.4,0.24500825]
[1740237853731,5.3024,2746.5,2746.2,3.6413]
[1740237853732,5.3024,2746.5,2746.3,0.2450756]
[1740237853930,0.8078,2746.4,2746.1,3.64144]
[1740237854256,0.8078,2746.4,2746.2,0.24514295]
[1740237855466,0.8078,2746.4,2746.2,3.88650295]
[1740237855774,0.8078,2746.4,2746.2,3.88644295]
[1740237857075,6.1102,2746.4,2746.3,3.64126]
[1740237857364,6.1102,2746.4,2746.3,0.2450756]
[1740237857566,5.3024,2746.4,2746.3,3.8863356]
[1740237857767,5.3024,2746.4,2746.3,3.64126]
[1740237858073,3.0,2747.1,2746.3,3.64126]
[1740237858074,6.1102,2746.9,2746.7,3.64063]
[1740237858372,0.8078,2747.4,2746.9,3.64038]
[1740237858530,5.3024,2747.3,2746.9,3.64038]
[1740237858733,5.3024,2747.3,2747.0,0.24419078]
[1740237859076,5.3024,2747.3,2746.9,3.64038]
[1740237859570,5.3024,2747.3,2747.2,3.64006]
[1740237859925,5.3024,2747.3,2747.2,3.88374679]
[1740237860828,3.6385,2748.4,2747.2,3.88374679]
[1740237860829,6.1102,2748.1,2747.9,3.63914]
[1740237861236,6.1102,2748.1,2748.0,3.88183318]
[1740237861237,5.3024,2748.1,2748.0,3.88183318]
[1740237861746,5.3024,2748.1,2748.0,0.24282318]
[1740237862457,5.3024,2748.1,2747.8,3.63926]
[1740237862656,5.3024,2748.1,2748.0,0.24238374]
[1740237862972,5.3024,2748.1,2748.0,3.88122679]
[1740237863127,6.1102,2748.6,2748.3,3.6386]
[1740237863331,6.1102,2748.6,2748.4,0.24194775]
[1740237863563,6.1102,2748.6,2748.4,3.88039775]
[1740237863871,5.3024,2748.6,2748.4,3.88039775]
[1740237864974,5.3024,2748.6,2748.5,3.63834]
[1740237865277,7.439,2749.0,2748.8,3.63794]
[1740237865278,5.3024,2749.0,2748.8,3.63794]
[1740237865472,5.91002,2749.0,2748.7,3.63807]
[1740237865643,5.91002,2749.0,2748.9,0.23935299]
[1740237865848,5.3024,2749.0,2748.8,0.2391831]
[1740237866162,5.3024,2749.0,2748.9,0.23911587]
[1740237867372,5.3024,2749.0,2748.5,0.8]
[1740237867577,5.3024,2749.0,2748.9,0.23911587]
[1740237867874,5.3024,2749.0,2748.5,0.8]
[1740237868076,5.3024,2749.0,2748.9,0.23911587]
[1740237868674,5.3024,2749.0,2748.5,0.8]
[1740237869178,5.3024,2749.0,2748.6,0.23931757]
[1740237870353,6.273775,2749.0,2748.6,0.23931757]
[1740237870669,3.63799,2748.8,2748.6,0.23931757]
[1740237870852,3.63799,2748.8,2748.2,0.7927]
[1740237871058,8.94039,2748.8,2748.7,0.23925034]
[1740237871241,8.94039,2748.8,2748.2,0.7927]
[1740237871575,5.3024,2748.8,2748.2,4.97575085]
[1740237871782,8.94045,2748.8,2748.3,0.23951932]
[1740237871985,5.3024,2748.8,2748.2,4.97575085]
[1740237872163,5.3024,2748.8,2748.4,0.23945206]
[1740237872339,5.3024,2748.8,2748.2,4.97575085]
[1740237872541,5.3024,2748.8,2748.3,0.23951932]
[1740237872771,5.3024,2748.8,2748.2,4.97575085]
[1740237873083,5.3024,2748.8,2748.4,0.23945206]
[1740237873381,8.94037,2748.8,2748.5,0.23938482]
[1740237873881,8.94037,2748.8,2748.2,4.43136]
[1740237874077,8.94037,2748.8,2748.6,0.23931757]
[1740237874280,8.94037,2748.8,2748.2,4.43136]
[1740237874457,8.94037,2748.8,2748.7,0.23925034]
[1740237874681,10.2953175,2748.8,2748.2,4.43136]
[1740237874970,8.94037,2748.8,2748.3,3.63859]
[1740237875176,5.3024,2748.8,2748.3,3.87810932]
[1740237875686,5.3024,2748.8,2748.3,0.23951932]
[1740237875884,5.3024,2748.8,2748.3,3.87810932]
[1740237876098,5.3024,2748.8,2748.3,3.63859]
[1740237876391,5.3024,2748.8,2748.4,0.23945206]
[1740237876887,3.63809,2748.7,2748.4,0.23945206]
[1740237877039,3.63809,2748.7,2748.2,4.43135]
[1740237877245,8.9404,2748.8,2748.5,0.23938482]
[1740237877480,8.9404,2748.8,2748.2,4.43135]
[1740237877659,4.40066,2748.7,2748.6,0.23931757]
[1740237877858,0.7625,2748.7,2747.7,3.6394]
[1740237878087,0.7625,2748.7,2748.2,3.63868]
[1740237878395,0.7625,2748.7,2748.3,0.23922951]
[1740237878682,0.7625,2748.7,2748.3,3.87779951]
[1740237878882,0.7625,2748.7,2748.2,7.2773]
[1740237879083,0.7625,2748.7,2748.4,0.23945206]
[1740237879282,0.7625,2748.7,2748.3,0.23951931]
[1740237879489,0.7625,2748.7,2748.5,0.23938481]
[1740237879791,5.3024,2748.8,2748.6,3.87740757]
[1740237880559,5.3024,2748.8,2748.6,7.51553757]
[1740237880887,5.3024,2748.8,2748.7,3.63808]
[1740237881089,5.3024,2749.3,2749.2,3.63742]
[1740237881447,5.3024,2749.3,2749.2,3.87626918]
[1740237883976,5.3024,2749.6,2749.5,3.63702]
[1740237884206,5.3024,2749.6,2749.5,4.42972]
[1740237884409,5.3024,2749.6,2749.5,0.23839292]
[1740237884767,5.3024,2749.6,2749.3,0.7927]
[1740237885102,5.3024,2749.6,2749.5,0.23839292]
[1740237885608,5.3024,2749.6,2749.3,0.7927]
[1740237885812,5.3024,2749.6,2749.5,0.23839292]
[1740237885966,5.3024,2749.6,2749.5,3.63702]
[1740237886306,5.3024,2749.6,2749.5,4.70594921]
[1740237888406,5.3024,2750.2,2749.8,3.63659]
[1740237888607,5.3024,2750.2,2749.7,3.63667]
[1740237888814,5.3024,2750.2,2749.9,3.87386445]
[1740237888998,5.3024,2750.2,2749.9,3.63646]
[1740237889196,8.9385,2750.2,2750.0,0.23733728]
[1740237889752,5.3024,2750.2,2749.7,3.63675]
[1740237889911,8.93851,2750.2,2750.1,0.23727011]
[1740237890077,5.3024,2750.2,2749.8,0.8191]
[1740237890280,5.3024,2750.2,2750.1,0.23727011]
[1740237890580,5.3024,2750.2,2750.1,0.23719991]
[1740237891002,5.3024,2750.2,2749.9,3.63641]
[1740237891215,5.3024,2750.2,2750.1,0.23719991]
[1740237891405,5.3024,2750.2,2750.0,0.23726708]
[1740237891585,5.3024,2750.2,2750.1,0.23719991]
[1740237892116,5.3024,2750.2,2749.8,4.45571]
[1740237892275,5.3024,2750.2,2750.1,0.23719991]
[1740237892468,5.3024,2750.2,2749.8,4.45571]
[1740237892671,5.3024,2750.2,2750.1,0.23719991]
[1740237892871,5.3024,2750.2,2749.9,0.809242]
[1740237893098,5.3024,2750.2,2750.1,0.23719991]
[1740237893284,5.3024,2750.2,2750.0,0.23726708]
[1740237893505,5.3024,2750.2,2750.1,0.23719991]
[1740237893914,5.3024,2750.2,2749.9,0.809242]
[1740237894116,5.3024,2750.2,2750.1,0.23719991]
[1740237894733,5.3024,2750.2,2749.8,3.6366]
[1740237894892,5.3024,2750.2,2750.1,0.23719991]
[1740237895090,5.3024,2750.2,2749.8,4.08217]
[1740237895288,5.3024,2750.2,2750.1,0.23719991]
[1740237895488,5.3024,2750.2,2749.8,4.08217]
[1740237895732,5.3024,2750.2,2750.1,0.23605005]
[1740237895887,5.3024,2750.2,2749.8,4.08217]
[1740237896087,5.3024,2750.2,2750.1,0.23605005]
[1740237896290,5.3024,2750.2,2749.9,0.408217]
[1740237896513,5.3024,2750.2,2750.1,0.23594477]
[1740237896728,5.3024,2750.2,2750.0,0.23601194]
[1740237896894,5.3024,2750.2,2750.1,0.23594477]
[1740237897534,5.3024,2750.2,2749.9,0.52202136]
[1740237897745,5.3024,2750.2,2750.0,3.87236194]
[1740237898545,5.3024,2750.2,2750.1,3.63623]
[1740237898870,5.3024,2750.2,2750.1,4.69127477]
[1740237899065,5.3024,2750.2,2750.1,0.23594477]
[1740237899456,5.3024,2750.2,2749.9,3.63639]
[1740237899763,5.3024,2750.2,2750.0,0.23601194]
[1740237900269,5.3024,2750.2,2750.0,3.87235194]
[1740237900572,5.3024,2750.2,2750.0,3.87227194]
[1740237900759,5.3024,2750.2,2750.0,0.23601194]
[1740237901132,5.3024,2750.2,2750.0,3.87228194]
[1740237901371,5.3024,2750.5,2750.1,0.46814849]
[1740237901571,5.3024,2750.5,2750.2,0.23587761]
[1740237903768,8.93811,2750.5,2750.2,0.23587761]
[1740237905061,8.93811,2750.5,2749.9,4.445663]
[1740237905273,8.93811,2750.5,2750.3,0.23581045]
[1740237905473,8.93811,2750.5,2749.9,4.445663]
[1740237905691,8.93811,2750.5,2750.4,0.23574329]
[1740237905994,8.93811,2750.5,2750.4,0.23561168]
[1740237906384,8.93811,2750.5,2750.0,0.8901333]
[1740237906584,8.93811,2750.5,2750.4,0.23561168]
[1740237906787,5.3024,2750.5,2750.0,4.5264833]
[1740237906960,8.93814,2750.5,2750.4,0.23561168]
[1740237907163,8.93814,2750.5,2750.0,3.63635]
[1740237907356,8.93814,2750.5,2750.1,0.23581316]
[1740237909100,3.63595,2750.4,2750.1,0.23581316]
[1740237909501,8.93814,2750.5,2749.9,3.63647]
[1740237909802,8.93814,2750.5,2750.0,0.809211]
[1740237909971,8.93814,2750.5,2750.0,1.04509133]
[1740237910174,0.7928,2750.4,2750.0,0.23588033]
[1740237910367,3.63652,2749.9,2749.6,0.01002128]
[1740237910574,5.3024,2750.0,2749.7,0.23593274]
[1740237910967,5.3024,2750.0,2749.7,0.62420714]
[1740237911188,8.93877,2750.0,2749.7,0.23593274]
[1740237911904,3.63661,2749.9,2749.7,0.23593274]
[1740237912063,5.3024,2750.0,2749.7,0.23593274]
[1740237912669,8.9388,2750.0,2749.7,0.23593274]
[1740237913117,8.93881,2750.0,2749.7,0.23593274]
[1740237913603,7.27316,2749.9,2749.7,0.23593274]
[1740237913909,4.45812,2749.8,2749.7,0.23593274]
[1740237914477,4.45812,2749.8,2749.6,0.01002128]
[1740237914478,3.63676,2749.7,2749.6,0.01002128]
[1740237915184,9.76066,2749.7,2749.6,0.01002128]
[1740237916701,12.76066,2749.7,2749.6,0.01002128]
[1740237917276,12.76066,2749.7,2749.6,1.28e-06]
[1740237917507,15.23948764,2749.7,2749.6,1.28e-06]
[1740237918399,9.1239,2749.7,2749.6,1.28e-06]
[1740237918719,12.76066,2749.7,2749.6,1.28e-06]
[1740237918887,6.1239,2749.7,2749.6,1.28e-06]
[1740237919093,5.3024,2749.7,2749.6,1.28e-06]
[1740237919315,5.3024,2749.7,2749.6,0.23726477]
[1740237919316,8.93916,2749.7,2749.6,0.23726477]
[1740237919614,5.3024,2749.7,2749.6,0.23726477]
[1740237920034,8.93916,2749.7,2749.6,0.23726477]
[1740237920326,5.3024,2749.7,2749.6,0.23726477]
[1740237920528,5.3024,2749.7,2749.6,3.63689128]
[1740237920738,5.3024,2749.7,2749.6,1.04926477]
[1740237922515,5.3024,2749.7,2749.6,4.68615477]
[1740237922714,5.3024,2749.7,2749.6,1.04926477]
[1740237923525,5.3024,2749.7,2749.6,4.68615477]
[1740237924140,5.3024,2750.1,2750.0,3.63636]
[1740237924489,5.3024,2750.1,2750.0,3.87291598]
[1740237925831,5.3024,2750.1,2750.0,0.23655598]
[1740237926239,5.3024,2750.1,2749.8,3.63649]
[1740237926439,5.3024,2750.1,2750.0,0.23652965]
[1740237926598,5.3024,2750.1,2749.9,0.23659683]
[1740237927854,5.3024,2750.1,2749.7,3.63674]
[1740237928058,5.3024,2750.1,2750.0,0.23652965]
[1740237928252,5.3024,2750.1,2749.7,3.63674]
[1740237928432,5.3024,2750.1,2750.0,0.23652965]
[1740237928754,5.3024,2750.1,2749.7,3.63674]
[1740237929050,5.3024,2750.1,2749.6,4.44883128]
[1740237929255,5.3024,2750.1,2749.8,0.23666401]
[1740237929552,5.3024,2750.1,2749.7,3.63673]
[1740237929755,5.3024,2750.1,2749.9,0.23659683]
[1740237929965,5.3024,2750.1,2749.8,0.23666401]
[1740237930259,5.3024,2750.1,2749.9,0.23659683]
[1740237930750,5.3024,2750.1,2749.6,8.08561128]
[1740237931059,5.3024,2750.1,2749.6,5.25742241]
[1740237931266,5.3024,2750.1,2749.8,3.63656]
[1740237931567,5.3024,2750.1,2749.9,0.23610543]
[1740237932774,0.7532,2750.0,2749.9,0.23610543]
[1740237932928,5.3024,2750.1,2749.6,3.63680128]
[1740237933377,5.3024,2750.1,2749.7,0.2360731]
[1740237934072,8.93863,2750.1,2749.7,0.2360731]
[1740237934237,3.63638,2750.0,2749.7,0.2360731]
[1740237935166,4.42192,2749.8,2749.7,0.2360731]
[1740237935743,9.72432,2749.8,2749.7,0.2360731]
[1740237935943,9.72432,2749.8,2749.6,1.28e-06]
[1740237935944,6.0877,2749.8,2749.6,1.28e-06]
[1740237936151,3.63676,2749.7,2749.6,1.28e-06]
[1740237937175,8.93916,2749.7,2749.6,1.28e-06]
[1740237937336,9.72446,2749.7,2749.6,1.28e-06]
[1740237941272,6.0877,2749.7,2749.6,1.28e-06]
[1740237941875,5.3024,2749.7,2749.6,1.28e-06]
[1740237942262,5.3024,2749.7,2749.6,0.23729987]
[1740237943083,8.93883,2750.0,2749.6,0.23729987]
[1740237943674,3.63667,2749.8,2749.6,0.23729987]
[1740237943845,0.7853,2749.8,2749.6,0.23729987]
[1740237944050,0.7853,2749.8,2749.6,1.28e-06]
[1740237944253,11.70191704,2750.0,2749.6,1.28e-06]
[1740237944565,11.70193704,2750.0,2749.7,0.2372314]
[1740237944768,1.1701937,2749.9,2749.7,0.2372314]
[1740237944969,11.70193704,2750.0,2749.6,1.28e-06]
[1740237945286,11.70193704,2750.0,2749.7,0.2372314]
[1740237945452,15.33840704,2750.0,2749.7,0.2372314]
[1740237945783,11.70193704,2750.0,2749.7,0.2372314]
[1740237946307,3.63651,2749.9,2749.7,0.2372314]
[1740237946908,11.70193704,2750.0,2749.7,0.2372314]
[1740237947281,5.3024,2750.0,2749.7,0.2372314]
[1740237947906,3.6366,2749.9,2749.7,0.2372314]
[1740237948406,5.3024,2750.0,2749.7,0.2372314]
[1740237951112,5.3024,2750.0,2749.7,1.0365314]
[1740237953212,5.3024,2750.0,2749.9,3.63649]
[1740237953396,5.3024,2750.0,2749.9,0.23709704]
[1740237953569,5.3024,2750.0,2749.8,3.63652]
[1740237953777,5.3024,2750.0,2749.9,0.23639497]
[1740237955114,5.3024,2750.0,2749.7,4.43597]
[1740237955317,5.3024,2750.0,2749.9,0.23639497]
[1740237955800,5.3024,2750.0,2749.7,0.7993]
[1740237955995,5.3024,2750.0,2749.8,3.87301215]
[1740237956711,5.3024,2750.0,2749.9,3.63649]
[1740237957124,5.3024,2750.0,2749.9,3.87288497]
[1740237957485,5.3024,2750.4,2750.1,3.63613]
[1740237957896,5.3024,2750.4,2750.2,0.23610572]
[1740237958091,5.3024,2750.4,2750.2,3.87217572]
[1740237958629,5.3024,2750.4,2750.2,0.23610572]
[1740237958991,5.3024,2750.4,2750.0,4.41685]
[1740237959191,5.3024,2750.4,2750.1,0.23612902]
[1740237960292,8.93831,2750.4,2750.1,0.23612902]
[1740237960811,5.3024,2750.4,2750.3,3.63596]
[1740237961006,5.3024,2750.4,2750.3,3.87189328]
[1740237962113,5.3024,2750.4,2750.3,0.23593328]
[1740237962495,5.3024,2750.4,2750.2,7.2721]
[1740237962748,5.3024,2750.4,2750.3,3.87177924]
[1740237962896,5.3024,2750.8,2750.4,0.7805]
[1740237963097,5.3024,2750.8,2750.6,3.63545]
[1740237963399,5.3024,2750.8,2750.7,0.23555065]
[1740237963747,5.3024,2750.8,2750.4,4.41622]
[1740237963952,5.3024,2750.8,2750.7,0.23555065]
[1740237964541,5.3024,2750.8,2750.4,0.7805]
[1740237964837,5.3024,2750.8,2750.5,0.23568493]
[1740237965136,5.3024,2750.8,2750.5,3.87126493]
[1740237965350,5.3024,2750.8,2750.5,3.63558]
[1740237965502,5.3024,2750.8,2750.6,0.23561779]
[1740237966249,5.3024,2750.8,2750.4,0.7805]
[1740237966732,5.3024,2750.8,2750.5,0.23568493]
[1740237969437,4.44167,2750.6,2750.5,0.23568493]
[1740237969644,0.8061,2750.6,2750.5,0.23568493]
[1740237969931,4.44167,2750.6,2750.1,3.63621]
[1740237970140,4.44168,2750.6,2750.1,3.63621]
[1740237970339,4.44168,2750.6,2750.2,0.23457076]
[1740237971739,0.8061,2750.6,2750.2,0.23457076]
[1740237973118,0.8061,2750.6,2750.3,3.63595]
[1740237973328,5.3024,2750.8,2750.5,3.63569]
[1740237973656,5.3024,2750.8,2750.6,0.23430215]
[1740237974918,5.3024,2750.8,2750.4,0.7867]
[1740237975321,5.3024,2750.8,2750.5,0.23436929]
[1740237976354,5.3024,2750.8,2750.7,3.63543]
[1740237976638,5.3024,2750.8,2750.7,3.86966501]
[1740237977605,5.3024,2750.8,2750.7,0.23423501]
[1740237978026,5.3024,2750.8,2750.6,3.63556]
[1740237978231,5.3024,2750.8,2750.7,0.23423501]
[1740237979256,5.3024,2750.8,2750.7,5.04333751]
[1740237980808,5.3024,2751.2,2751.1,3.6349]
[1740237981010,5.3024,2751.2,2751.1,4.4216]
[1740237981221,5.3024,2751.2,2751.1,4.65532976]
[1740237982144,5.3024,2751.9,2751.1,1.02042976]
[1740237982353,5.3024,2751.9,2751.2,0.46554698]
[1740237982540,5.3024,2751.9,2751.5,3.63433]
[1740237982710,5.3024,2751.9,2751.4,3.63442]
[1740237982915,5.3024,2751.9,2751.6,0.23285076]
[1740237983146,5.3024,2751.9,2751.5,3.63437]
[1740237983334,5.3024,2751.9,2751.7,0.23278367]
[1740237983646,5.3024,2751.9,2751.4,3.63442]
[1740237983811,5.3024,2751.9,2751.8,0.23271658]
[1740237984007,5.3024,2751.9,2751.5,3.63433]
[1740237984260,5.3024,2751.9,2751.8,0.23271658]
[1740237984562,5.3024,2751.9,2751.6,0.23285076]
[1740237984858,5.3024,2751.9,2751.7,0.23278367]
[1740237985218,5.3024,2751.9,2751.8,0.23271658]
[1740237985511,5.3024,2751.9,2751.4,3.63442]
[1740237985707,5.3024,2751.9,2751.8,0.23271658]
[1740237985925,5.3024,2751.9,2751.4,3.63442]
[1740237986151,3.634,2751.8,2751.2,4.10028698]
[1740237986317,5.3024,2751.9,2751.2,4.8359111]
[1740237986663,8.93633,2751.9,2751.3,0.23305206]
[1740237986859,5.3024,2751.9,2751.3,0.23305206]
[1740237987146,5.3024,2751.9,2751.3,3.86766206]
[1740237987547,8.93626,2751.9,2751.3,3.86766206]
[1740237987774,5.3024,2751.9,2751.3,3.86766206]
[1740237988981,8.93632,2751.9,2751.3,3.86766206]
[1740237989358,3.634,2751.8,2751.3,3.86766206]
[1740237989744,5.3024,2751.9,2751.5,3.63434]
[1740237990178,5.3024,2751.9,2751.6,0.23285076]
[1740237990552,3.63406,2751.8,2751.6,0.23285076]
[1740237990752,5.3024,2751.9,2751.4,0.7951]
[1740237990973,8.93633,2751.9,2751.7,0.23209995]
[1740237991165,8.93633,2751.9,2751.4,0.7951]
[1740237991383,5.3024,2751.9,2751.4,0.7951]
[1740237991555,8.93633,2751.9,2751.5,0.23223414]
[1740237992169,3.634,2751.8,2751.5,0.23223414]
[1740237996996,5.3024,2751.9,2751.5,3.86656414]
[1740237997199,5.3024,2751.9,2751.5,0.79330529]
[1740237997366,5.3024,2751.9,2751.7,3.63408]
[1740237997700,7.05078039,2752.4,2751.4,0.7951]
[1740237997701,0.7979,2752.4,2751.8,4.66095513]
[1740237997899,0.7979,2752.6,2752.0,7.26731]
[1740237998196,0.7979,2752.6,2752.1,3.63355]
[1740237998504,8.9352,2752.7,2752.2,0.7951]
[1740237998663,8.9352,2752.7,2752.2,1.02670683]
[1740237999267,12.56809,2752.7,2752.2,1.02670683]
[1740237999507,8.9352,2752.7,2752.2,1.02670683]
[1740237999718,8.9352,2752.7,2752.2,4.66015683]
[1740237999866,3.41759039,2752.6,2752.2,0.23160683]
[1740238000066,3.63332,2752.3,2752.2,0.23160683]
[1740238000313,3.63348,2752.2,2751.6,4.42932]
[1740238000500,3.63375,2752.0,2751.6,0.7951]
[1740238000669,3.63375,2752.0,2751.7,0.23100483]
[1740238001912,3.63375,2752.0,2751.6,0.00215166]
[1740238002117,3.63375,2752.0,2751.8,0.23093774]
[1740238002268,3.63375,2752.0,2751.6,0.00215166]
[1740238002612,0.7979,2752.1,2751.7,0.22275466]
[1740238003218,3.63379,2752.0,2751.7,0.22275466]
[1740238004176,3.63395,2751.9,2751.7,0.22275466]
[1740238004336,3.63395,2751.9,2751.4,0.262]
[1740238004668,3.63464,2751.3,2750.7,0.3869725]
[1740238004867,3.63477,2751.2,2750.7,0.3869725]
[1740238005015,3.63495,2751.1,2750.7,0.4131725]
[1740238005221,4.39054,2751.3,2750.7,0.0262]
[1740238005663,0.7559,2751.3,2750.7,0.0262]
[1740238005846,3.63478,2751.2,2750.7,0.0262]
[1740238006739,3.63478,2751.2,2750.7,0.74609313]
[1740238007850,3.6353,2750.8,2750.4,0.0262]
[1740238008166,4.3912,2750.8,2750.2,3.63609]
[1740238008326,4.3912,2750.8,2750.2,4.10076308]
[1740238009166,4.3912,2750.8,2750.2,0.46467308]
[1740238009368,3.63546,2750.7,2750.2,0.46467308]
[1740238009570,3.63546,2750.7,2750.3,0.21542361]
[1740238009763,5.3024,2750.7,2750.1,6.6624]
[1740238009970,8.93785,2750.7,2750.4,0.21535645]
[1740238010170,5.3024,2750.7,2750.1,7.718464]
[1740238010478,5.3024,2750.7,2750.5,0.2152893]
[1740238010661,5.3024,2750.7,2750.1,7.718464]
[1740238011271,5.3024,2750.7,2750.3,3.63594]
[1740238011437,5.3024,2750.7,2750.2,0.21549077]
[1740238011765,5.3024,2750.7,2750.3,0.21542361]
[1740238011945,5.3024,2750.7,2750.5,3.6356]
[1740238012333,5.3024,2750.7,2750.6,0.21522216]
[1740238012532,5.3024,2750.7,2750.3,3.63587]
[1740238012745,5.3024,2750.7,2750.6,0.21522216]
[1740238012931,5.3024,2750.7,2750.3,3.63587]
[1740238013154,5.3024,2750.7,2750.6,0.21522216]
[1740238013346,5.3024,2750.7,2750.4,3.63578]
[1740238013547,5.3024,2750.7,2750.6,0.21642277]
[1740238013747,5.3024,2750.7,2750.4,3.63578]
[1740238013950,5.3024,2750.7,2750.6,0.21642277]
[1740238014167,5.3024,2750.7,2750.4,3.63578]
[1740238014463,5.3024,2750.7,2750.6,0.21642277]
[1740238014674,0.7906,2750.6,2750.5,0.21648991]
[1740238014875,0.7906,2750.6,2750.3,3.63587]
[1740238015960,5.3024,2750.7,2750.3,3.63587]
[1740238016269,5.3024,2750.7,2750.2,4.52869587]
[1740238016567,5.3024,2750.7,2750.3,0.21662422]
[1740238016771,5.3024,2750.7,2750.2,4.52869587]
[1740238016946,5.3024,2750.7,2750.4,0.21655706]
[1740238017149,5.3024,2750.7,2750.1,0.0262]
[1740238017353,3.63567,2750.6,2750.5,0.21648991]
[1740238017553,3.63567,2750.6,2750.1,3.0262]
[1740238017785,3.63567,2750.6,2750.5,0.21648991]
[1740238017956,5.3024,2750.7,2750.0,0.73020392]
[1740238017957,8.93783,2750.7,2750.0,0.73020392]
[1740238018277,3.63557,2750.6,2750.5,0.21648991]
[1740238018477,8.93783,2750.7,2750.1,3.6362]
[1740238018774,5.3024,2750.7,2750.1,3.6362]
[1740238018952,3.63558,2750.6,2750.2,0.21669138]
[1740238019482,5.3024,2750.7,2750.2,3.85274138]
[1740238019773,5.3024,2750.7,2750.3,0.21662422]
[1740238019974,5.3024,2750.7,2750.2,3.63602]
[1740238020275,5.3024,2750.7,2750.6,3.63557]
[1740238020680,5.3024,2750.7,2750.6,0.21642277]
[1740238021058,5.3024,2750.7,2750.6,3.63557]
[1740238021363,5.3024,2750.7,2750.6,3.85199277]
[1740238021585,5.3024,2751.3,2751.1,3.63483]
[1740238021790,5.3024,2751.3,2750.9,3.63513]
[1740238022099,5.3024,2751.3,2751.0,3.63497]
[1740238022275,5.3024,2751.3,2751.1,3.63485]
[1740238022597,5.3024,2751.3,2751.2,0.24348198]
[1740238022793,8.93654,2751.7,2751.2,0.24348198]
[1740238022988,10.272653,2751.7,2751.2,0.24348198]
[1740238023366,10.272653,2751.7,2751.2,0.21728198]
[1740238024062,6.638513,2751.7,2751.2,0.21728198]
[1740238024482,10.272633,2751.7,2751.2,0.21728198]
[1740238024908,3.63442,2751.5,2750.9,3.63507]
[1740238025063,0.439722,2751.4,2751.3,0.21648723]
[1740238025477,0.439722,2751.4,2751.0,3.63503]
[1740238025707,3.63442,2751.5,2751.0,3.63503]
[1740238025892,3.63442,2751.5,2751.1,0.21662145]
[1740238026096,5.3024,2751.5,2751.1,0.21662145]
[1740238026579,5.3024,2751.5,2751.2,3.63468]
[1740238026780,5.3024,2751.5,2751.2,0.21655434]
[1740238027567,5.3024,2751.5,2750.9,3.63517]
[1740238027762,5.3024,2751.5,2751.3,0.21648723]
[1740238027986,5.3024,2751.5,2751.1,3.6349]
[1740238028298,5.3024,2751.5,2751.4,0.21642012]
[1740238028464,5.3024,2751.5,2750.9,3.63507]
[1740238028987,5.3024,2751.5,2751.1,3.63488]
[1740238029605,5.3024,2751.5,2751.2,0.21655434]
[1740238030610,5.3024,2751.5,2751.3,3.66076]